[Event "POL-chT DMP Ekstraliga 2019"]
[Site "Katowice"]
[Date "2019.08.31"]
[Round "4.9"]
[White "Mastrovasilis, Dimitrios"]
[Black "Piesik, Piotr"]
[Result "1-0"]
[ECO "B90"]
[WhiteElo "2594"]
[BlackElo "2409"]
[Annotator "ChessBase"]
[PlyCount "59"]
[EventDate "2019.08.28"]
[EventType "team-tourn"]
[EventCountry "POL"]
[SourceTitle "playchess.com"]
[Source "ChessBase"]
[SourceQuality "1"]
[TimeControl "40/5400+30:1800+30"]

1. e4 {[%emt 0:00:00]} c5 {[%emt 0:00:00]} 2. Nf3 {[%emt 0:00:00]} d6 {[%emt 0:00:02]} 3. d4 {[%emt 0:00:09]} cxd4 {[%emt 0:00:04]} 4. Nxd4 {[%emt 0:00:10]} Nf6 {[%emt 0:00:06]} 5. Nc3 {[%emt 0:00:23]} a6 {[%emt 0:00:06]} 6. Be3 {[%emt 0:00:23]} e5 {[%emt 0:02:02]} 7. Nb3 {[%emt 0:01:10]} Be7 {[%emt 0:01:00]} 8. h3 {[%emt 0:00:36]} Be6 {[%emt 0:09:00]} 9. f4 {[%emt 0:01:41]} exf4 {[%emt 0:01:40]} 10. Bxf4 {[%emt 0:00:12]} Nc6 {[%emt 0:00:04]} 11. Qe2 {[%emt 0:02:12]} Ne5 {[%emt 0:07:02]} 12. O-O-O {[%emt 0:00:32]} Qc7 {[%emt 0:00:18]} 13. g4 {[%emt 0:01:00]} Rc8 {[%emt 0:11:17]} 14. Kb1 {[%emt 0:12:05]} O-O {[%emt 0:02:41]} 15. g5 {[%emt 0:10:21]} Nfd7 {[%emt 0:02:10]} 16. Nd5 {[%emt 0:03:59]} Bxd5 {[%emt 0:03:12]} 17. exd5 {[%emt 0:00:12]} Rfe8 {[%emt 0:00:10]} 18. Qg2 {[%emt 0:01:29]} Bf8 {[%emt 0:04:21]} 19. h4 {[%emt 0:02:37]} g6 {[%emt 0:11:56]} 20. h5 {[%emt 0:04:12]} Bg7 {[%emt 0:01:09]} 21. hxg6 {[%emt 0:01:39]} hxg6 {[%emt 0:00:42]} 22. Rh3 {[%emt 0:03:39]} Nb6 {[%emt 0:05:08]} 23. Bc1 {[%emt 0:09:21]} Nec4 {[%emt 0:07:31]} 24. Qh2 {[%emt 0:16:55]} Be5 {[%emt 0:08:22]} 25. Qf2 {[%emt 0:00:34]} Na4 {[%emt 0:05:04]} 26. Bxc4 {[%emt 0:06:52]} Qxc4 {[%emt 0:00:16]} 27. Rh4 {[%emt 0:01:10]} Qb5 {[%emt 0:00:08]} 28. Rh7 {[%emt 0:02:28]} Rc7 {[%emt 0:01:42]} 29. Rdh1 {[%emt 0:00:29]} Kf8 {[%emt 0:05:50]} 30. Qf6 {[%emt 0:01:51]} 1-0

[Event "POL-chT DMP Ekstraliga 2019"]
[Site "Katowice"]
[Date "2019.08.31"]
[Round "4.10"]
[White "Simantsev, Mikhail"]
[Black "Tazbir, Marcin"]
[Result "1/2-1/2"]
[ECO "D38"]
[WhiteElo "2346"]
[BlackElo "2521"]
[Annotator "ChessBase"]
[PlyCount "39"]
[EventDate "2019.08.28"]
[EventType "team-tourn"]
[EventCountry "POL"]
[SourceTitle "playchess.com"]
[Source "ChessBase"]
[SourceQuality "1"]
[TimeControl "40/5400+30:1800+30"]

1. d4 {[%emt 0:00:00]} d5 {[%emt 0:00:00]} 2. c4 {[%emt 0:00:00]} e6 {[%emt 0:00:00]} 3. Nc3 {[%emt 0:00:40]} Nf6 {[%emt 0:00:44]} 4. Nf3 {[%emt 0:01:31]} Bb4 {[%emt 0:00:05]} 5. Qa4+ {[%emt 0:00:08]} Nc6 {[%emt 0:00:06]} 6. e3 {[%emt 0:00:07]} O-O {[%emt 0:00:10]} 7. Bd2 {[%emt 0:01:11]} a6 {[%emt 0:04:43]} 8. a3 {[%emt 0:04:44]} Be7 {[%emt 0:04:31]} 9. Qc2 {[%emt 0:03:22]} Re8 {[%emt 0:02:31]} 10. Bd3 {[%emt 0:05:00]} dxc4 {[%emt 0:01:21]} 11. Bxc4 {[%emt 0:00:02]} h6 {[%emt 0:01:13]} 12. Rd1 {[%emt 0:22:16]} Bd6 {[%emt 0:09:50]} 13. e4 {[%emt 0:19:14]} e5 {[%emt 0:00:07]} 14. dxe5 {[%emt 0:01:35]} Nxe5 {[%emt 0:02:22]} 15. Nxe5 {[%emt 0:01:45]} Bxe5 {[%emt 0:01:42]} 16. Bxh6 {[%emt 0:08:53]} Qe7 {[%emt 0:02:06]} 17. Be3 {[%emt 0:06:01]} Bxc3+ {[%emt 0:01:38]} 18. Qxc3 {[%emt 0:01:53]} Nxe4 {[%emt 0:00:25]} 19. Qb3 {[%emt 0:03:07]} Nd6 {[%emt 0:03:56]} 20. O-O {[%emt 0:02:27]} 1/2-1/2

[Event "POL-chT DMP Ekstraliga 2019"]
[Site "Katowice"]
[Date "2019.08.31"]
[Round "4.11"]
[White "Wieczorek, Oskar"]
[Black "Szustakowski, Antoni"]
[Result "1/2-1/2"]
[ECO "C11"]
[WhiteElo "2497"]
[BlackElo "2256"]
[Annotator "ChessBase"]
[PlyCount "95"]
[EventDate "2019.08.28"]
[EventType "team-tourn"]
[EventCountry "POL"]
[SourceTitle "playchess.com"]
[Source "ChessBase"]
[SourceQuality "1"]
[TimeControl "40/5400+30:1800+30"]

1. e4 {[%emt 0:00:00]} e6 {[%emt 0:00:00]} 2. d4 {[%emt 0:00:00]} d5 {[%emt 0:00:00]} 3. Nc3 {[%emt 0:00:32]} Nf6 {[%emt 0:00:00]} 4. e5 {[%emt 0:00:06]} Nfd7 {[%emt 0:00:00]} 5. f4 {[%emt 0:00:48]} c5 {[%emt 0:00:00]} 6. Nf3 {[%emt 0:00:03]} Nc6 {[%emt 0:00:00]} 7. Be3 {[%emt 0:00:05]} a6 {[%emt 0:00:01]} 8. Qd2 {[%emt 0:00:38]} b5 {[%emt 0:00:13]} 9. Nd1 {[%emt 0:00:08]} Be7 {[%emt 0:00:04]} 10. c3 {[%emt 0:00:22]} b4 {[%emt 0:00:41]} 11. Be2 {[%emt 0:19:56]} a5 {[%emt 0:02:24]} 12. O-O {[%emt 0:04:39]} O-O {[%emt 0:00:06]} 13. Bf2 {[%emt 0:04:29]} Rb8 {[%emt 0:15:10]} 14. Ne3 {[%emt 0:09:45]} Nb6 {[%emt 0:00:18]} 15. cxb4 {[%emt 0:17:07]} cxd4 {[%emt 0:09:17]} 16. Nxd4 {[%emt 0:00:12]} Nxd4 {[%emt 0:00:04]} 17. Qxd4 {[%emt 0:00:09]} Bxb4 {[%emt 0:07:03]} 18. Rac1 {[%emt 0:07:00]} Be7 {[%emt 0:03:51]} 19. b3 {[%emt 0:08:48]} Bd7 {[%emt 0:06:15]} 20. Be1 {[%emt 0:01:43]} Nc8 {[%emt 0:02:59]} 21. f5 {[%emt 0:07:09]} Bg5 {[%emt 0:06:18]} 22. h4 {[%emt 0:00:32]} Bxe3+ {[%emt 0:03:41]} 23. Qxe3 {[%emt 0:00:01]} exf5 {[%emt 0:00:08]} 24. Qc5 {[%emt 0:04:55]} a4 {[%emt 0:07:13]} 25. bxa4 {[%emt 0:06:12]} Nb6 {[%emt 0:05:16]} 26. Ba5 {[%emt 0:04:43]} Nxa4 {[%emt 0:01:17]} 27. Bxd8 {[%emt 0:00:23]} Nxc5 {[%emt 0:00:03]} 28. Be7 {[%emt 0:00:24]} Ne4 {[%emt 0:01:00]} 29. Bxf8 {[%emt 0:00:03]} Kxf8 {[%emt 0:00:11]} 30. Rfd1 {[%emt 0:02:30]} Rb2 {[%emt 0:03:16]} 31. Rxd5 {[%emt 0:00:38]} Be6 {[%emt 0:00:06]} 32. Bb5 {[%emt 0:00:07]} g5 {[%emt 0:02:28]} 33. Rd8+ {[%emt 0:00:08]} Kg7 {[%emt 0:00:05]} 34. a4 {[%emt 0:00:31]} gxh4 {[%emt 0:00:44]} 35. Rd4 {[%emt 0:01:26]} h3 {[%emt 0:01:31]} 36. gxh3 {[%emt 0:00:19]} Ng5 {[%emt 0:00:03]} 37. Kf1 {[%emt 0:01:21]} Nf3 {[%emt 0:02:42]} 38. Rf4 {[%emt 0:00:14]} Nxe5 {[%emt 0:02:45]} 39. Rf2 {[%emt 0:00:01]} Rb3 {[%emt 0:03:43]} 40. Rc5 {[%emt 0:00:00]} Kf6 {[%emt 0:00:00]} 41. Kg2 {[%emt 0:02:46]} Ra3 {[%emt 0:08:57]} 42. Rfc2 {[%emt 0:08:41]} f4 {[%emt 0:04:50]} 43. R5c3 {[%emt 0:01:31]} Ra1 {[%emt 0:00:10]} 44. Rc1 {[%emt 0:04:52]} Ra2+ {[%emt 0:00:13]} 45. R3c2 {[%emt 0:00:20]} Ra3 {[%emt 0:00:07]} 46. Rc3 {[%emt 0:00:04]} Ra2+ {[%emt 0:00:03]} 47. R1c2 {[%emt 0:00:07]} Ra1 {[%emt 0:00:10]} 48. Rc1 {[%emt 0:01:07]} 1/2-1/2

[Event "POL-chT DMP Ekstraliga 2019"]
[Site "Katowice"]
[Date "2019.08.31"]
[Round "4.12"]
[White "Antolak, Julia"]
[Black "Zawadzka, Jolanta"]
[Result "0-1"]
[ECO "B47"]
[WhiteElo "2240"]
[BlackElo "2407"]
[Annotator "NA"]
[PlyCount "96"]
[EventDate "2019.08.28"]
[EventType "team-tourn"]
[EventCountry "POL"]
[SourceTitle "playchess.com"]
[Source "ChessBase"]
[SourceQuality "1"]
[TimeControl "40/5400+30:1800+30"]

1. e4 {[%emt 0:00:00]} c5 {[%emt 0:00:00]} 2. Nf3 {[%emt 0:00:00]} e6 {[%emt 0:00:00]} 3. d4 {[%emt 0:00:00]} cxd4 {[%emt 0:00:00]} 4. Nxd4 {[%emt 0:00:00]} Nc6 {[%emt 0:00:00]} 5. Nc3 {[%emt 0:00:00]} Qc7 {[%emt 0:00:12]} 6. f4 {[%emt 0:00:04]} Nxd4 {[%emt 0:01:40]} 7. Qxd4 {[%emt 0:00:06]} a6 {[%emt 0:00:12]} 8. Be3 {[%emt 0:02:20]} b5 {[%emt 0:01:22]} 9. a3 {[%emt 0:01:05]} Bb7 {[%emt 0:02:03]} 10. O-O-O {[%emt 0:00:53]} Rc8 {[%emt 0:01:55]} 11. Bd3 {[%emt 0:03:48]} Nf6 {[%emt 0:09:09]} 12. e5 {[%emt 0:02:30]} Nd5 {[%emt 0:03:11]} 13. Ne4 {[%emt 0:01:09]} b4 {[%emt 0:10:33]} 14. axb4 {[%emt 0:04:47]} Nxb4 {[%emt 0:03:40]} 15. Nd6+ {[%emt 0:19:02]} Bxd6 {[%emt 0:00:36]} 16. exd6 {[%emt 0:00:04]} Nxd3+ {[%emt 0:02:46]} 17. Qxd3 {[%emt 0:00:05]} Qa5 {[%emt 0:00:47]} 18. Bd4 {[%emt 0:04:00]} O-O {[%emt 0:06:13]} 19. Bc3 {[%emt 0:21:53]} Qa1+ {[%emt 0:14:27]} 20. Kd2 {[%emt 0:00:05]} Qa4 {[%emt 0:00:05]} 21. Qd4 {[%emt 0:04:11]} Qxd4+ {[%emt 0:00:06]} 22. Bxd4 {[%emt 0:00:03]} f6 {[%emt 0:11:53]} 23. Rhg1 {[%emt 0:04:49]} Rc6 {[%emt 0:00:24]} 24. Kc1 {[%emt 0:02:48]} Rxd6 {[%emt 0:05:52]} 25. Bc5 {[%emt 0:00:06]} Rxd1+ {[%emt 0:00:03]} 26. Rxd1 {[%emt 0:00:06]} Rf7 {[%emt 0:00:49]} 27. g3 {[%emt 0:01:00]} d5 {[%emt 0:02:06]} 28. b4 {[%emt 0:02:45]} Rc7 {[%emt 0:01:20]} 29. Kd2 {[%emt 0:01:12]} Bc6 {[%emt 0:02:38]} 30. Kc3 {[%emt 0:02:02]} Kf7 {[%emt 0:00:53]} 31. Kd4 {[%emt 0:00:20]} h5 {[%emt 0:02:01]} 32. Re1 {[%emt 0:02:04]} Rc8 {[%emt 0:01:25]} 33. Re3 {[%emt 0:01:24]} Re8 {[%emt 0:05:35]} 34. Bd6 {[%emt 0:02:52]} Kg6 {[%emt 0:00:56]} 35. Rc3 {[%emt 0:01:24]} Bb5 {[%emt 0:02:13]} 36. Rc7 {[%emt 0:00:33]} Rd8 {[%emt 0:00:59]} 37. Bc5 {[%emt 0:01:57]} Rg8 {[%emt 0:00:33]} 38. Re7 {[%emt 0:01:19]} Kf5 {[%emt 0:00:15]} 39. Ke3 {[%emt 0:02:14]} g5 {[%emt 0:03:35]} 40. fxg5 {[%emt 0:00:00]} Rxg5 {[%emt 0:00:00]} 41. Rh7 {[%emt 0:02:44]} Kg6 {[%emt 0:06:03]} 42. Re7 {[%emt 0:00:51]} Re5+ {[%emt 0:00:18]} 43. Kf3 {[%emt 0:01:19]} Re2 {[%emt 0:02:33]} 44. h3 {[%emt 0:03:52]} e5 {[%emt 0:01:21]} 45. g4 {[%emt 0:00:34]} hxg4+ {[%emt 0:02:46]} 46. Kxg4 {[%emt 0:00:34]} Rxc2 {[%emt 0:00:42]} 47. h4 {[%emt 0:00:09]} Be2+ {[%emt 0:01:24]} 48. Kg3 {[%emt 0:00:09]} d4 {[%emt 0:00:38]} 0-1

[Event "POL-chT DMP Ekstraliga 2019"]
[Site "Katowice"]
[Date "2019.08.31"]
[Round "4.14"]
[White "Skawinski, Arkadiusz"]
[Black "Navara, David"]
[Result "0-1"]
[ECO "B40"]
[WhiteElo "2398"]
[BlackElo "2724"]
[Annotator "RC"]
[PlyCount "66"]
[EventDate "2019.08.28"]
[EventType "team-tourn"]
[EventCountry "POL"]
[SourceTitle "playchess.com"]
[Source "ChessBase"]
[SourceQuality "1"]
[TimeControl "40/5400+30:1800+30"]

1. e4 {[%emt 0:00:00]} c5 {[%emt 0:00:00]} 2. Nf3 {[%emt 0:00:00]} e6 {[%emt 0:00:00]} 3. b3 {[%emt 0:00:00]} b6 {[%emt 0:00:00]} 4. Bd3 {[%emt 0:00:00]} Bb7 {[%emt 0:00:00]} 5. O-O {[%emt 0:00:13]} Nc6 {[%emt 0:00:00]} 6. Re1 {[%emt 0:00:04]} Be7 {[%emt 0:00:00]} 7. Bb2 {[%emt 0:00:07]} f6 {[%emt 0:00:04]} 8. Bf1 {[%emt 0:03:18]} Nh6 {[%emt 0:00:09]} 9. d4 {[%emt 0:10:41]} cxd4 {[%emt 0:00:12]} 10. Nxd4 {[%emt 0:00:04]} Nxd4 {[%emt 0:00:43]} 11. Bxd4 {[%emt 0:00:26]} O-O {[%emt 0:00:10]} 12. c4 {[%emt 0:00:23]} f5 {[%emt 0:00:18]} 13. Nc3 {[%emt 0:06:58]} Bb4 {[%emt 0:08:04]} 14. e5 {[%emt 0:06:03]} f4 {[%emt 0:02:18]} 15. Bd3 {[%emt 0:25:31]} Qh4 {[%emt 0:18:20]} 16. f3 {[%emt 0:14:40]} Ng4 {[%emt 0:03:19]} 17. h3 {[%emt 0:09:34]} Ne3 {[%emt 0:03:33]} 18. Qe2 {[%emt 0:02:34]} Rac8 {[%emt 0:01:50]} 19. Qf2 {[%emt 0:06:24]} Qg5 {[%emt 0:02:59]} 20. Nb5 {[%emt 0:06:13]} Bc5 {[%emt 0:01:50]} 21. Rac1 {[%emt 0:03:44]} a6 {[%emt 0:04:57]} 22. Bxc5 {[%emt 0:01:22]} Rxc5 {[%emt 0:00:05]} 23. Nd6 {[%emt 0:01:02]} Ba8 {[%emt 0:00:09]} 24. Be4 {[%emt 0:00:40]} Rxe5 {[%emt 0:07:10]} 25. Bxa8 {[%emt 0:00:49]} Rxa8 {[%emt 0:00:08]} 26. Ne4 {[%emt 0:00:03]} Qg6 {[%emt 0:02:26]} 27. Rxe3 {[%emt 0:01:52]} fxe3 {[%emt 0:00:09]} 28. Qxe3 {[%emt 0:00:03]} d5 {[%emt 0:01:21]} 29. Qd4 {[%emt 0:00:08]} dxe4 {[%emt 0:01:15]} 30. Qxe5 {[%emt 0:00:15]} exf3 {[%emt 0:00:07]} 31. g4 {[%emt 0:00:40]} Qh6 {[%emt 0:05:50]} 32. Re1 {[%emt 0:00:41]} Rf8 {[%emt 0:00:06]} 33. g5 {[%emt 0:01:15]} f2+ {[%emt 0:00:11]} 0-1

[Event "POL-chT DMP Ekstraliga 2019"]
[Site "Katowice"]
[Date "2019.08.31"]
[Round "4.17"]
[White "Bulski, Krzysztof"]
[Black "Bronowicki, Mateusz"]
[Result "1/2-1/2"]
[ECO "A04"]
[WhiteElo "2537"]
[BlackElo "2271"]
[Annotator "ChessBase"]
[PlyCount "83"]
[EventDate "2019.08.28"]
[EventType "team-tourn"]
[EventCountry "POL"]
[SourceTitle "playchess.com"]
[Source "ChessBase"]
[SourceQuality "1"]
[TimeControl "40/5400+30:1800+30"]

1. Nf3 {[%emt 0:00:00]} e6 {[%emt 0:01:59]} 2. c4 {[%emt 0:00:07]} b6 {[%emt 0:02:11]} 3. Nc3 {[%emt 0:01:33]} Bb7 {[%emt 0:00:50]} 4. e4 {[%emt 0:03:24]} c5 {[%emt 0:01:05]} 5. d4 {[%emt 0:05:49]} cxd4 {[%emt 0:00:59]} 6. Qxd4 {[%emt 0:00:24]} d6 {[%emt 0:05:19]} 7. Bg5 {[%emt 0:08:52]} Nf6 {[%emt 0:08:18]} 8. Rd1 {[%emt 0:07:00]} Be7 {[%emt 0:06:29]} 9. Be2 {[%emt 0:10:24]} O-O {[%emt 0:03:38]} 10. O-O {[%emt 0:07:35]} Nbd7 {[%emt 0:04:24]} 11. e5 {[%emt 0:06:25]} Nxe5 {[%emt 0:02:46]} 12. Nxe5 {[%emt 0:00:28]} dxe5 {[%emt 0:00:02]} 13. Qxe5 {[%emt 0:00:06]} Qb8 {[%emt 0:02:04]} 14. Qe3 {[%emt 0:12:57]} Bc5 {[%emt 0:04:19]} 15. Qh3 {[%emt 0:01:26]} Qe5 {[%emt 0:03:26]} 16. Qh4 {[%emt 0:08:49]} Ne4 {[%emt 0:10:23]} 17. Bf4 {[%emt 0:01:08]} Qf6 {[%emt 0:01:38]} 18. Qxf6 {[%emt 0:00:40]} Nxf6 {[%emt 0:05:17]} 19. a3 {[%emt 0:01:51]} Rfd8 {[%emt 0:02:52]} 20. Nb5 {[%emt 0:08:10]} Ne4 {[%emt 0:04:48]} 21. Rxd8+ {[%emt 0:04:40]} Rxd8 {[%emt 0:00:20]} 22. Nxa7 {[%emt 0:00:07]} e5 {[%emt 0:13:54]} 23. Bc1 {[%emt 0:02:26]} Rd6 {[%emt 0:01:21]} 24. b4 {[%emt 0:03:35]} Nc3 {[%emt 0:01:03]} 25. Bg4 {[%emt 0:01:19]} Bd4 {[%emt 0:02:53]} 26. h3 {[%emt 0:01:07]} Rg6 {[%emt 0:01:06]} 27. Kh2 {[%emt 0:01:23]} h5 {[%emt 0:03:02]} 28. Bf3 {[%emt 0:00:04]} Bxf3 {[%emt 0:00:20]} 29. gxf3 {[%emt 0:00:03]} Rf6 {[%emt 0:00:28]} 30. Kg2 {[%emt 0:00:15]} Rg6+ {[%emt 0:00:09]} 31. Kh2 {[%emt 0:00:02]} Rf6 {[%emt 0:00:08]} 32. Be3 {[%emt 0:02:06]} Rxf3 {[%emt 0:02:12]} 33. Kg2 {[%emt 0:00:04]} Rf6 {[%emt 0:00:09]} 34. Nb5 {[%emt 0:01:01]} Nxb5 {[%emt 0:02:42]} 35. cxb5 {[%emt 0:00:03]} Bxe3 {[%emt 0:00:04]} 36. fxe3 {[%emt 0:00:03]} Rxf1 {[%emt 0:00:09]} 37. Kxf1 {[%emt 0:00:04]} Kf8 {[%emt 0:00:01]} 38. Ke2 {[%emt 0:00:25]} e4 {[%emt 0:02:31]} 39. a4 {[%emt 0:01:06]} Ke7 {[%emt 0:00:03]} 40. a5 {[%emt 0:00:00]} Kd7 {[%emt 0:00:00]} 41. h4 {[%emt 0:02:51]} f6 {[%emt 0:03:56]} 42. Kf2 {[%emt 0:01:55]} 1/2-1/2

[Event "POL-chT DMP Ekstraliga 2019"]
[Site "Katowice"]
[Date "2019.08.31"]
[Round "4.20"]
[White "Leniart, Arkadiusz"]
[Black "Hracek, Zbynek"]
[Result "1/2-1/2"]
[ECO "B22"]
[WhiteElo "2488"]
[BlackElo "2572"]
[Annotator "ChessBase"]
[PlyCount "117"]
[EventDate "2019.08.28"]
[EventType "team-tourn"]
[EventCountry "POL"]
[SourceTitle "playchess.com"]
[Source "ChessBase"]
[SourceQuality "1"]
[TimeControl "40/5400+30:1800+30"]

1. e4 {[%emt 0:00:00]} c5 {[%emt 0:00:00]} 2. c3 {[%emt 0:00:00]} Nf6 {[%emt 0:00:00]} 3. e5 {[%emt 0:00:00]} Nd5 {[%emt 0:00:00]} 4. Nf3 {[%emt 0:00:01]} d6 {[%emt 0:00:00]} 5. exd6 {[%emt 0:01:37]} Qxd6 {[%emt 0:00:10]} 6. d4 {[%emt 0:07:28]} e6 {[%emt 0:04:13]} 7. Na3 {[%emt 0:03:50]} Nc6 {[%emt 0:09:11]} 8. Nb5 {[%emt 0:18:07]} Qd8 {[%emt 0:00:42]} 9. c4 {[%emt 0:05:44]} Nc7 {[%emt 0:05:03]} 10. dxc5 {[%emt 0:17:51]} Bxc5 {[%emt 0:02:04]} 11. Qxd8+ {[%emt 0:01:33]} Kxd8 {[%emt 0:01:42]} 12. Nc3 {[%emt 0:00:43]} e5 {[%emt 0:12:10]} 13. Be3 {[%emt 0:03:42]} Bxe3 {[%emt 0:07:09]} 14. fxe3 {[%emt 0:00:04]} Bf5 {[%emt 0:01:34]} 15. Rd1+ {[%emt 0:06:12]} Ke7 {[%emt 0:12:24]} 16. Nd5+ {[%emt 0:04:36]} Nxd5 {[%emt 0:00:05]} 17. cxd5 {[%emt 0:00:06]} e4 {[%emt 0:08:14]} 18. dxc6 {[%emt 0:04:16]} exf3 {[%emt 0:03:22]} 19. cxb7 {[%emt 0:00:11]} Rab8 {[%emt 0:00:51]} 20. gxf3 {[%emt 0:00:10]} Rxb7 {[%emt 0:00:09]} 21. b3 {[%emt 0:01:03]} Be6 {[%emt 0:12:30]} 22. Rd4 {[%emt 0:04:24]} Rc8 {[%emt 0:01:14]} 23. Kd2 {[%emt 0:00:26]} Rc5 {[%emt 0:00:07]} 24. Bd3 {[%emt 0:01:43]} Ra5 {[%emt 0:04:19]} 25. Bb1 {[%emt 0:00:48]} Rg5 {[%emt 0:00:20]} 26. Re1 {[%emt 0:01:17]} Rbb5 {[%emt 0:00:24]} 27. Ra4 {[%emt 0:05:17]} a5 {[%emt 0:01:42]} 28. Bd3 {[%emt 0:00:25]} Rb4 {[%emt 0:03:30]} 29. Rxb4 {[%emt 0:01:05]} axb4 {[%emt 0:00:02]} 30. Re2 {[%emt 0:00:31]} Rg1 {[%emt 0:02:51]} 31. e4 {[%emt 0:01:33]} g5 {[%emt 0:00:26]} 32. Ke3 {[%emt 0:00:29]} h5 {[%emt 0:01:36]} 33. f4 {[%emt 0:05:46]} gxf4+ {[%emt 0:01:14]} 34. Kxf4 {[%emt 0:00:06]} Kd6 {[%emt 0:03:36]} 35. Bc4 {[%emt 0:03:45]} Rg4+ {[%emt 0:01:13]} 36. Ke3 {[%emt 0:00:43]} Ke5 {[%emt 0:00:18]} 37. Kd3 {[%emt 0:00:24]} h4 {[%emt 0:02:49]} 38. Bxe6 {[%emt 0:01:30]} fxe6 {[%emt 0:00:13]} 39. Kc4 {[%emt 0:00:58]} h3 {[%emt 0:01:23]} 40. Re3 {[%emt 0:00:00]} Rg2 {[%emt 0:00:00]} 41. Rxh3 {[%emt 0:01:44]} Kxe4 {[%emt 0:01:52]} 42. Rh4+ {[%emt 0:04:46]} Kf3 {[%emt 0:05:20]} 43. Rh6 {[%emt 0:06:46]} Rg4+ {[%emt 0:09:19]} 44. Kb5 {[%emt 0:08:56]} e5 {[%emt 0:00:27]} 45. h4 {[%emt 0:01:00]} Rf4 {[%emt 0:07:24]} 46. Re6 {[%emt 0:05:06]} e4 {[%emt 0:00:55]} 47. h5 {[%emt 0:00:44]} e3 {[%emt 0:00:53]} 48. h6 {[%emt 0:00:16]} Rh4 {[%emt 0:03:36]} 49. Ka4 {[%emt 0:02:01]} e2 {[%emt 0:00:31]} 50. Rf6+ {[%emt 0:01:57]} Ke3 {[%emt 0:00:16]} 51. Re6+ {[%emt 0:00:13]} Kd2 {[%emt 0:00:04]} 52. Rd6+ {[%emt 0:00:18]} Kc2 {[%emt 0:02:18]} 53. Rc6+ {[%emt 0:00:17]} Kd1 {[%emt 0:01:57]} 54. Rd6+ {[%emt 0:00:05]} Ke1 {[%emt 0:01:04]} 55. Re6 {[%emt 0:01:18]} Kd1 {[%emt 0:01:34]} 56. Rd6+ {[%emt 0:00:05]} Kc1 {[%emt 0:00:04]} 57. Rc6+ {[%emt 0:00:07]} Kd2 {[%emt 0:00:02]} 58. Rd6+ {[%emt 0:00:05]} Ke1 {[%emt 0:00:04]} 59. Re6 {[%emt 0:00:05]} 1/2-1/2

[Event "POL-chT DMP Ekstraliga 2019"]
[Site "Katowice"]
[Date "2019.08.31"]
[Round "4.21"]
[White "Markowski, Tomasz"]
[Black "Druska, Juraj"]
[Result "1/2-1/2"]
[ECO "A13"]
[WhiteElo "2537"]
[BlackElo "2460"]
[Annotator "ChessBase"]
[PlyCount "126"]
[EventDate "2019.08.28"]
[EventType "team-tourn"]
[EventCountry "POL"]
[SourceTitle "playchess.com"]
[Source "ChessBase"]
[SourceQuality "1"]
[TimeControl "40/5400+30:1800+30"]

1. c4 {[%emt 0:00:00]} e6 {[%emt 0:00:00]} 2. g3 {[%emt 0:00:00]} d5 {[%emt 0:00:00]} 3. Bg2 {[%emt 0:00:00]} c6 {[%emt 0:00:00]} 4. Nf3 {[%emt 0:00:00]} b5 {[%emt 0:00:00]} 5. b3 {[%emt 0:03:02]} bxc4 {[%emt 0:00:03]} 6. bxc4 {[%emt 0:00:05]} Ba6 {[%emt 0:00:03]} 7. cxd5 {[%emt 0:00:47]} cxd5 {[%emt 0:00:04]} 8. O-O {[%emt 0:00:30]} Nf6 {[%emt 0:00:05]} 9. d3 {[%emt 0:00:34]} Bd6 {[%emt 0:00:26]} 10. Nc3 {[%emt 0:02:47]} O-O {[%emt 0:00:07]} 11. Rb1 {[%emt 0:05:42]} Qd7 {[%emt 0:00:05]} 12. a4 {[%emt 0:00:57]} Nc6 {[%emt 0:14:22]} 13. Nb5 {[%emt 0:00:32]} Rab8 {[%emt 0:07:10]} 14. Bd2 {[%emt 0:03:01]} e5 {[%emt 0:06:50]} 15. Nxd6 {[%emt 0:02:43]} Qxd6 {[%emt 0:06:59]} 16. Rxb8 {[%emt 0:00:14]} Rxb8 {[%emt 0:00:26]} 17. Qa1 {[%emt 0:00:08]} h6 {[%emt 0:38:26]} 18. Rc1 {[%emt 0:00:27]} Qe6 {[%emt 0:00:47]} 19. h3 {[%emt 0:07:21]} Rc8 {[%emt 0:04:53]} 20. a5 {[%emt 0:07:35]} Kh7 {[%emt 0:04:23]} 21. Kh2 {[%emt 0:01:15]} Nd7 {[%emt 0:09:20]} 22. Qa4 {[%emt 0:01:34]} f5 {[%emt 0:00:14]} 23. e4 {[%emt 0:18:16]} fxe4 {[%emt 0:01:27]} 24. dxe4 {[%emt 0:00:02]} d4 {[%emt 0:00:11]} 25. Nh4 {[%emt 0:00:12]} Ne7 {[%emt 0:01:31]} 26. Rxc8 {[%emt 0:00:06]} Bxc8 {[%emt 0:00:18]} 27. f4 {[%emt 0:00:09]} exf4 {[%emt 0:00:28]} 28. gxf4 {[%emt 0:00:10]} Nc5 {[%emt 0:02:10]} 29. Qxd4 Nb3 30. Qc3 {[%emt 0:02:58]} Nxd2 {[%emt 0:00:08]} 31. Qxd2 {[%emt 0:00:03]} Qf6 {[%emt 0:03:44]} 32. Nf3 {[%emt 0:01:10]} Ng6 {[%emt 0:00:01]} 33. Kg3 {[%emt 0:09:00]} h5 {[%emt 0:00:00]} 34. h4 {[%emt 0:01:36]} Bg4 {[%emt 0:00:20]} 35. Ng5+ {[%emt 0:03:34]} Kh6 {[%emt 0:00:07]} 36. e5 {[%emt 0:01:28]} Qf8 {[%emt 0:02:10]} 37. Be4 {[%emt 0:03:36]} Bf5 {[%emt 0:00:20]} 38. Qd6 {[%emt 0:05:21]} Qc8 {[%emt 0:00:01]} 39. Nf7+ Kh7 40. Qc6 {[%emt 0:00:00]} Qxc6 {[%emt 0:00:00]} 41. Bxc6 {[%emt 0:02:19]} Ne7 {[%emt 0:02:24]} 42. Bb5 {[%emt 0:03:11]} Kg8 {[%emt 0:09:13]} 43. Nd6 {[%emt 0:01:05]} Kf8 {[%emt 0:00:06]} 44. Be2 {[%emt 0:01:32]} g6 {[%emt 0:00:40]} 45. Bf3 {[%emt 0:00:39]} Be6 {[%emt 0:00:30]} 46. Be4 {[%emt 0:01:02]} Bd5 {[%emt 0:00:41]} 47. Kf3 {[%emt 0:02:33]} Bxe4+ {[%emt 0:02:39]} 48. Kxe4 {[%emt 0:00:36]} Nc6 {[%emt 0:00:05]} 49. Nc4 {[%emt 0:01:29]} Ke7 {[%emt 0:00:41]} 50. f5 {[%emt 0:02:59]} gxf5+ {[%emt 0:00:06]} 51. Kxf5 {[%emt 0:00:02]} a6 {[%emt 0:14:22]} 52. Ne3 {[%emt 0:04:47]} Nxa5 {[%emt 0:01:41]} 53. Nd5+ {[%emt 0:01:08]} Kf7 {[%emt 0:04:15]} 54. e6+ {[%emt 0:04:08]} Kg7 {[%emt 0:00:11]} 55. Nf4 {[%emt 0:04:15]} Nc6 {[%emt 0:00:22]} 56. Nxh5+ {[%emt 0:00:15]} Kh6 {[%emt 0:00:09]} 57. Nf4 {[%emt 0:06:38]} a5 {[%emt 0:00:07]} 58. Ke4 {[%emt 0:06:02]} a4 {[%emt 0:00:04]} 59. Kd3 {[%emt 0:00:23]} Kg7 {[%emt 0:01:27]} 60. Kc3 {[%emt 0:01:20]} Kf6 {[%emt 0:01:17]} 61. h5 {[%emt 0:00:54]} Nd8 {[%emt 0:00:18]} 62. h6 {[%emt 0:00:40]} Nxe6 {[%emt 0:00:06]} 63. Nxe6 {[%emt 0:00:15]} Kg6 {[%emt 0:00:04]} 1/2-1/2